bitfinex-derivatives/quotes_BTCF0:USTF0_20241226
["timestamp","ask_amount","ask_price","bid_price","bid_amount"]
[1735221005008,0.10547219,95393.0,95375.0,0.18803394]
[1735221005220,0.10547219,95385.0,95375.0,0.18803394]
[1735221005516,0.0634,95384.0,95375.0,0.18803394]
[1735221006715,0.0634,95384.0,95367.0,0.052484]
[1735221006916,0.0675,95383.0,95367.0,0.052484]
[1735221007117,0.0675,95383.0,95354.0,0.0317]
[1735221007619,0.0675,95383.0,95369.0,0.052482]
[1735221007823,0.0659,95382.0,95369.0,0.052482]
[1735221008405,0.10547219,95379.0,95375.0,0.006]
[1735221008719,0.0659,95382.0,95375.0,0.006]
[1735221009017,0.0669,95382.0,95380.0,5.051e-05]
[1735221009515,0.0659,95382.0,95380.0,5.051e-05]
[1735221009715,0.07901414,95382.0,95380.0,5.051e-05]
[1735221010411,0.07901414,95382.0,95380.0,0.00405051]
[1735221010613,0.01311414,95382.0,95380.0,0.00405051]
[1735221010812,0.0675,95383.0,95380.0,0.00405051]
[1735221011223,0.01342464,95383.0,95380.0,0.00405051]
[1735221011521,0.10547219,95400.0,95380.0,0.00505051]
[1735221011912,0.10547219,95400.0,95380.0,0.00205051]
[1735221012117,0.10547219,95400.0,95380.0,0.00105051]
[1735221012920,0.10547219,95400.0,95380.0,5.051e-05]
[1735221013122,0.10547219,95400.0,95380.0,0.00105051]
[1735221014416,0.1957,95399.0,95380.0,0.00105051]
[1735221015221,0.19196888,95440.0,95380.0,0.00105051]
[1735221015222,0.01700965,95440.0,95380.0,0.00105051]
[1735221015424,0.10547219,95400.0,95380.0,0.00105051]
[1735221015615,0.2611641,95429.0,95390.0,0.10547219]
[1735221015820,0.15633076,95429.0,95400.0,0.10547219]
[1735221016118,0.10547219,95430.0,95400.0,0.10547219]
[1735221016318,0.10547219,95430.0,95401.0,0.0693]
[1735221016718,0.004,95429.0,95412.0,0.01]
[1735221016928,0.004,95429.0,95419.0,0.10547219]
[1735221017923,0.005,95429.0,95419.0,0.10547219]
[1735221018226,0.001,95429.0,95419.0,0.10547219]
[1735221018829,0.005,95429.0,95424.0,0.01]
[1735221019028,0.005,95429.0,95425.0,0.0637]
[1735221019332,0.01862418,95429.0,95425.0,0.0637]
[1735221019524,0.01862418,95429.0,95425.0,0.116151]
[1735221019525,0.007,95429.0,95425.0,0.116151]
[1735221020122,0.007,95429.0,95425.0,0.0637]
[1735221020326,0.3526,95500.0,95425.0,0.0637]
[1735221020529,0.10547219,95460.0,95430.0,0.10547219]
[1735221021117,0.10547219,95470.0,95440.0,0.10547219]
[1735221021528,0.40547219,95470.0,95440.0,0.10547219]
[1735221021732,0.002,95460.0,95440.0,0.10547219]
[1735221021933,0.003,95460.0,95440.0,0.10547219]
[1735221022129,0.001,95460.0,95440.0,0.10547219]
[1735221022338,0.001,95460.0,95440.0,0.10647219]
[1735221022529,0.001,95460.0,95450.0,0.10547219]
[1735221022828,0.005,95460.0,95450.0,0.10547219]
[1735221023336,0.005,95460.0,95441.0,0.0658]
[1735221023527,0.1352,95459.0,95441.0,0.0658]
[1735221023930,0.35256,95507.0,95441.0,0.0658]
[1735221024130,0.38450219,95470.0,95442.0,0.1743]
[1735221024331,0.003,95460.0,95442.0,0.1743]
[1735221024631,0.003,95460.0,95451.0,0.1743]
[1735221024937,0.08450219,95470.0,95451.0,0.1743]
[1735221025128,0.38450219,95470.0,95451.0,0.1743]
[1735221025732,0.005,95460.0,95452.0,0.1743]
[1735221026031,0.005,95460.0,95441.0,0.0658]
[1735221026232,0.305,95460.0,95430.0,0.06503919]
[1735221026934,0.32158627,95460.0,95430.0,0.06503919]
[1735221027120,0.1154,95459.0,95430.0,0.06503919]
[1735221027538,0.4154,95459.0,95430.0,0.06503919]
[1735221027934,0.4154,95459.0,95452.0,0.001]
[1735221028129,0.4164,95459.0,95452.0,0.001]
[1735221028336,0.4164,95459.0,95430.0,0.06503919]
[1735221028535,0.1164,95459.0,95440.0,0.10547219]
[1735221029238,0.1164,95459.0,95452.0,0.001]
[1735221029838,0.3,95490.0,95452.0,0.001]
[1735221030043,0.10547219,95462.0,95452.0,0.001]
[1735221030239,0.10476744,95460.0,95452.0,0.001]
[1735221030440,0.3,95462.0,95452.0,0.001]
[1735221030639,0.003,95459.0,95440.0,0.10547219]
[1735221031234,0.02036626,95462.0,95452.0,0.001]
[1735221031538,0.10547219,95470.0,95452.0,0.001]
[1735221031539,0.005,95460.0,95452.0,0.001]
[1735221031723,0.005,95460.0,95440.0,0.10547219]
[1735221031929,0.005,95460.0,95440.0,0.12644219]
[1735221032127,0.003,95459.0,95450.0,0.10547219]
[1735221032332,0.003,95459.0,95452.0,0.001]
[1735221032742,0.02114014,95470.0,95459.0,0.01]
[1735221033037,0.08450219,95500.0,95460.0,0.21094438]
[1735221033242,0.0425,95504.0,95480.0,0.10547219]
[1735221033435,0.3425,95504.0,95480.0,0.10547219]
[1735221033636,0.10547219,95500.0,95481.0,0.0664]
[1735221034043,0.10473397,95503.0,95481.0,0.0664]
[1735221034336,0.10547219,95500.0,95481.0,0.0664]
[1735221034536,0.10547219,95491.0,95481.0,0.04456001]
[1735221034729,0.10547219,95491.0,95461.0,0.0665]
[1735221034927,0.40547219,95491.0,95461.0,0.08747]
[1735221035134,0.10547219,95471.0,95461.0,0.08747]
[1735221035431,0.10547219,95480.0,95461.0,0.08747]
[1735221037135,0.12597629,95480.0,95461.0,0.08747]
[1735221037333,0.002,95471.0,95461.0,0.08847]
[1735221037839,0.12597629,95480.0,95461.0,0.08847]
[1735221037840,0.13297629,95480.0,95461.0,0.08847]
[1735221038035,0.13297629,95480.0,95462.0,0.0666]
[1735221038338,0.0225041,95480.0,95462.0,0.0666]
[1735221038643,0.006,95471.0,95462.0,0.08757]
[1735221038944,0.006,95471.0,95468.0,0.01]
[1735221039441,0.006,95471.0,95468.0,0.03097]
[1735221039636,0.006,95471.0,95468.0,0.02097]
[1735221039940,0.002,95471.0,95468.0,0.03097]
[1735221040133,0.005,95480.0,95468.0,0.03097]
[1735221040744,0.001,95471.0,95468.0,0.03197]
[1735221040942,0.006,95471.0,95468.0,0.03197]
[1735221041141,0.005,95471.0,95468.0,0.03097]
[1735221041442,0.001,95480.0,95468.0,0.03197]
[1735221041640,0.003,95480.0,95470.0,0.10547219]
[1735221041845,0.001,95471.0,95470.0,0.10547219]
[1735221042037,0.001,95471.0,95470.0,0.02097]
[1735221043347,0.12669615,95490.0,95470.0,0.02097]
[1735221043645,0.001,95471.0,95470.0,0.02097]
[1735221043835,0.12669615,95490.0,95470.0,0.02097]
[1735221044035,0.001,95471.0,95470.0,0.02097]
[1735221044646,0.12769615,95490.0,95470.0,0.02097]
[1735221046150,0.02122396,95490.0,95480.0,0.10547219]
[1735221046335,0.10547219,95510.0,95481.0,0.0653]
[1735221046641,0.0746,95519.0,95481.0,0.0653]
[1735221046642,0.10547219,95500.0,95481.0,0.0653]
[1735221046945,0.001,95490.0,95481.0,0.08627]
[1735221047349,0.10547219,95500.0,95481.0,0.08627]
[1735221047553,0.10547219,95500.0,95481.0,0.08727]
[1735221048046,0.08550219,95500.0,95481.0,0.08727]
[1735221048638,0.10635618,95500.0,95481.0,0.08727]
[1735221051147,0.10635618,95500.0,95482.0,0.0688]
[1735221051641,0.10635618,95500.0,95483.0,0.0628]
[1735221052036,0.10635618,95500.0,95483.0,0.08377]
[1735221052846,0.02085399,95500.0,95490.0,0.10547219]
[1735221053041,0.0664,95519.0,95490.0,0.10547219]
[1735221053240,0.0664,95519.0,95490.0,0.12644219]
[1735221053437,0.10472136,95518.0,95490.0,0.12644219]
[1735221053637,0.10547219,95510.0,95490.0,0.12644219]
[1735221053838,0.10472136,95518.0,95490.0,0.12644219]
[1735221054033,0.04429631,95519.0,95490.0,0.12744219]
[1735221054238,0.1047071,95518.0,95500.0,0.10547219]
[1735221054537,0.10547219,95520.0,95501.0,0.1305]
[1735221054737,0.10547219,95510.0,95501.0,0.1305]
[1735221054933,0.10547219,95520.0,95501.0,0.1305]
[1735221056545,0.10547219,95530.0,95501.0,0.15247]
[1735221056740,0.10547219,95520.0,95501.0,0.15247]
[1735221057349,0.10547219,95530.0,95501.0,0.15247]
[1735221057555,0.10547219,95520.0,95501.0,0.15247]
[1735221058344,0.10547219,95511.0,95501.0,0.00306522]
[1735221058753,0.10547219,95520.0,95501.0,0.00306522]
[1735221058952,0.10547219,95530.0,95501.0,0.02403522]
[1735221059253,0.10547219,95530.0,95501.0,0.02303522]
[1735221059459,0.12610429,95530.0,95501.0,0.02403522]
[1735221059754,0.10547219,95520.0,95501.0,0.02403522]
[1735221060456,0.08450219,95520.0,95501.0,0.02403522]
[1735221061042,0.08733105,95538.0,95510.0,0.10547219]
[1735221061242,0.02093105,95538.0,95528.0,0.10547219]
[1735221061456,0.10547219,95580.0,95528.0,0.10547219]
[1735221061457,0.10547219,95560.0,95528.0,0.10547219]
[1735221061656,0.10547219,95560.0,95540.0,0.10547219]
[1735221061852,0.0679,95566.0,95541.0,0.0659]
[1735221062157,0.0679,95578.0,95550.0,0.10547219]
[1735221062454,0.0202804,95580.0,95560.0,0.10547219]
[1735221062653,0.0202804,95580.0,95552.0,0.01]
[1735221062654,0.10547219,95580.0,95552.0,0.01]
[1735221062846,0.10547219,95570.0,95553.0,0.0669]
[1735221063049,0.10464191,95579.0,95553.0,0.08787]
[1735221063355,0.10547219,95580.0,95553.0,0.08787]
[1735221063553,0.10547219,95580.0,95553.0,0.15737]
[1735221063856,0.10547219,95570.0,95553.0,0.15737]
[1735221064050,0.10463972,95579.0,95553.0,0.15737]
[1735221064351,0.10547219,95580.0,95553.0,0.15837]
[1735221064546,0.10463972,95578.0,95553.0,0.15837]
[1735221064741,0.10547219,95580.0,95553.0,0.15837]
[1735221065163,0.10463972,95579.0,95570.0,0.10547219]
[1735221065356,0.10547219,95590.0,95571.0,0.0693]
[1735221065652,0.10463041,95589.0,95571.0,0.0693]
[1735221065851,0.10547219,95581.0,95571.0,0.09027]
[1735221066040,0.10547219,95581.0,95571.0,0.0693]
[1735221066754,0.10547219,95581.0,95571.0,0.0703]
[1735221067659,0.10547219,95590.0,95571.0,0.09027]
[1735221068158,0.10462877,95594.0,95580.0,0.10547219]
[1735221068357,0.02072525,95595.0,95580.0,0.10547219]
[1735221068563,0.0647,95609.0,95581.0,0.0666]
[1735221069060,0.12079613,95600.0,95581.0,0.08757]
[1735221069458,0.22626832,95600.0,95581.0,0.08757]
[1735221070255,0.12079613,95600.0,95581.0,0.08857]
[1735221070655,0.22626832,95600.0,95581.0,0.08857]
[1735221070861,0.22626832,95600.0,95581.0,0.08757]
[1735221072369,0.10547219,95591.0,95571.0,0.0693]
[1735221072551,0.1046129,95599.0,95571.0,0.0693]
[1735221072552,0.10547219,95590.0,95571.0,0.0693]
[1735221073058,0.10147219,95590.0,95571.0,0.0693]
[1735221075168,0.12734286,95590.0,95571.0,0.0693]
[1735221075462,0.13034286,95590.0,95571.0,0.0693]
[1735221075759,0.02587067,95590.0,95571.0,0.0693]
[1735221075962,0.10947219,95590.0,95566.0,0.00064]
[1735221076163,0.10547219,95580.0,95555.0,0.00859001]
[1735221076349,0.10547219,95565.0,95556.0,0.0636]
[1735221077066,0.005,95590.0,95556.0,0.0636]
[1735221077367,0.10547219,95580.0,95556.0,0.07219001]
[1735221077763,0.0629,95598.0,95556.0,0.07219001]
[1735221077764,0.10547219,95570.0,95556.0,0.07219001]
[1735221078157,0.10547219,95570.0,95556.0,0.0636]
[1735221078965,0.004,95565.0,95556.0,0.0636]
[1735221079466,0.002,95570.0,95559.0,0.00859001]
[1735221079664,0.002,95570.0,95560.0,0.10547219]
[1735221080278,0.10547219,95580.0,95560.0,0.10547219]
[1735221080567,0.003,95565.0,95560.0,0.10547219]
[1735221080770,0.10547219,95590.0,95560.0,0.10547219]
[1735221080969,0.0629,95598.0,95559.0,0.00859001]
[1735221080970,0.10547219,95580.0,95559.0,0.00859001]
[1735221081161,0.10547219,95570.0,95559.0,0.00859001]
[1735221081355,0.10547219,95580.0,95559.0,0.00859001]
[1735221081673,0.10547219,95570.0,95559.0,0.00859001]
[1735221081860,0.10547219,95580.0,95559.0,0.00859001]
[1735221082871,0.10547219,95580.0,95560.0,0.0688]
[1735221083060,0.10547219,95570.0,95560.0,0.001]
[1735221083368,0.10547219,95570.0,95539.0,0.19487965]
[1735221083573,0.0678,95569.0,95551.0,0.0678]
[1735221083871,0.17244082,95569.0,95551.0,0.0678]
[1735221084075,0.10547219,95561.0,95551.0,0.0678]
[1735221084770,0.10547219,95561.0,95559.0,0.001]
[1735221084963,0.17277219,95569.0,95559.0,0.001]
[1735221085271,0.10465067,95568.0,95551.0,0.0678]
[1735221085572,0.10547219,95561.0,95551.0,0.0678]
[1735221086763,0.10647219,95561.0,95551.0,0.0678]
[1735221087465,0.001,95561.0,95553.0,0.00859001]
[1735221087664,0.001,95561.0,95551.0,0.0678]
[1735221087665,0.0913,95599.0,95563.0,0.00859001]
[1735221087863,0.0238,95599.0,95580.0,0.10547219]
[1735221088064,0.1,95600.0,95580.0,0.10547219]
[1735221088466,0.1,95600.0,95590.0,0.10547219]
[1735221088467,0.12642926,95600.0,95590.0,0.10547219]
[1735221089971,0.12642926,95600.0,95590.0,0.10647219]
[1735221090674,0.12642926,95600.0,95590.0,0.001]
[1735221090871,0.12642926,95600.0,95591.0,0.0671]
[1735221092578,0.12642926,95600.0,95591.0,0.1302]
[1735221095861,0.12642926,95600.0,95591.0,0.1994]
[1735221098671,0.12642926,95600.0,95591.0,0.2004]
[1735221099069,0.12642926,95600.0,95591.0,0.1994]
[1735221099477,0.12642926,95600.0,95583.0,0.18628964]
[1735221099683,0.13350743,95599.0,95581.0,0.14927964]
[1735221099881,0.19660743,95599.0,95581.0,0.14927964]
[1735221100075,0.21094438,95591.0,95575.0,0.20545944]
[1735221100377,0.10547219,95585.0,95575.0,0.17511545]
[1735221100777,0.10547219,95585.0,95568.0,0.31048273]
[1735221100778,0.10547219,95585.0,95561.0,0.00056]
[1735221101078,0.10547219,95585.0,95554.0,0.3526]
[1735221101276,0.10462111,95584.0,95554.0,0.3526]
[1735221101679,0.13745523,95585.0,95560.0,0.10704189]
[1735221102177,0.13745523,95585.0,95560.0,0.0015697]
[1735221102584,0.13745523,95585.0,95560.0,0.10704189]
[1735221102883,0.13745523,95585.0,95561.0,0.0679]
[1735221104878,0.03198304,95585.0,95561.0,0.0689]
[1735221105078,0.0289,95599.0,95570.0,0.10547219]
[1735221105384,0.03298637,95599.0,95589.0,0.10547219]
[1735221105577,0.1,95600.0,95591.0,0.00859001]
[1735221106083,0.28139421,95619.0,95591.0,0.00859001]
[1735221106282,0.28139421,95619.0,95600.0,0.10547219]
[1735221106482,0.00092,95620.0,95600.0,0.10547219]
[1735221106681,0.10547219,95630.0,95600.0,0.10547219]
[1735221107079,0.10459211,95629.0,95600.0,0.10547219]
[1735221107275,0.10459211,95629.0,95604.0,0.00859001]
[1735221107485,0.13730262,95630.0,95604.0,0.00859001]
[1735221109381,0.03183043,95630.0,95610.0,0.10547219]
[1735221109588,0.0634,95638.0,95610.0,0.10547219]
[1735221109885,0.10458391,95637.0,95610.0,0.10547219]
[1735221110092,0.10547219,95630.0,95604.0,0.00859001]
[1735221112185,0.10547219,95620.0,95604.0,0.00859001]
[1735221112886,0.10547219,95620.0,95601.0,0.0638]
[1735221113485,0.09625049,95638.0,95601.0,0.0638]
[1735221113686,0.10547219,95630.0,95610.0,0.10547219]
[1735221113888,0.10459102,95637.0,95610.0,0.10547219]
[1735221114087,0.10547219,95630.0,95601.0,0.0638]
[1735221114796,0.03285049,95638.0,95601.0,0.0638]
[1735221114999,0.10547219,95630.0,95601.0,0.0638]
[1735221115494,0.10547219,95630.0,95603.0,0.00859001]
[1735221115796,0.10547219,95640.0,95610.0,0.10547219]
[1735221115993,0.10547219,95650.0,95620.0,0.10547219]
[1735221116497,0.10547219,95660.0,95630.0,0.10547219]
[1735221116791,0.10458555,95649.0,95630.0,0.10547219]
[1735221116996,0.10547219,95660.0,95630.0,0.10547219]
[1735221117394,0.28139421,95653.0,95630.0,0.10547219]
[1735221117698,0.28139421,95653.0,95621.0,0.068]
[1735221117699,0.10547219,95650.0,95621.0,0.068]
[1735221117892,0.28139421,95653.0,95640.0,0.21953439]
[1735221118198,0.28139421,95653.0,95640.0,0.10547219]
[1735221118601,0.126,95661.0,95640.0,0.10547219]
[1735221118904,0.03300229,95662.0,95649.0,0.10547219]
[1735221119092,0.0677,95669.0,95649.0,0.10547219]
[1735221119488,0.0677,95669.0,95640.0,0.001]
[1735221119701,0.0677,95669.0,95650.0,0.10547219]
[1735221119894,0.0677,95669.0,95640.0,0.10647219]
[1735221120501,0.0677,95669.0,95640.0,0.10747219]
[1735221120696,0.10453799,95668.0,95649.0,0.001]
[1735221121302,0.10453799,95668.0,95640.0,0.10647219]
[1735221121492,0.10453799,95668.0,95640.0,0.001]
[1735221121493,0.10547219,95660.0,95640.0,0.001]
[1735221121699,0.40545799,95668.0,95640.0,0.10747219]
[1735221122001,0.10067844,95669.0,95649.0,0.001]
[1735221122195,0.10454345,95667.0,95649.0,0.001]
[1735221122391,0.10067844,95669.0,95649.0,0.001]
[1735221122700,0.10454345,95668.0,95640.0,0.001]
[1735221122890,0.10454345,95668.0,95595.0,0.35188]
[1735221122891,0.10547219,95650.0,95601.0,0.00859001]
[1735221123096,0.10547219,95630.0,95600.0,0.10547219]
[1735221123595,0.10547219,95640.0,95610.0,0.10547219]
[1735221123800,0.192,95639.0,95610.0,0.10547219]
[1735221124497,0.1045861,95638.0,95610.0,0.10547219]
[1735221125311,0.1293,95639.0,95620.0,0.10547219]
[1735221125602,0.1293,95639.0,95621.0,0.0635]
[1735221126097,0.10457024,95638.0,95601.0,0.1743]
[1735221126401,0.16847024,95638.0,95602.0,0.0679]
[1735221126598,0.16847024,95638.0,95610.0,0.10547219]
[1735221126999,0.10547219,95630.0,95602.0,0.0679]
[1735221127206,0.16947024,95638.0,95602.0,0.0679]
[1735221127207,0.10547219,95612.0,95602.0,0.0679]
[1735221127507,0.10547219,95620.0,95602.0,0.0679]
[1735221128700,0.001,95620.0,95602.0,0.0679]
[1735221130303,0.10547219,95630.0,95602.0,0.0679]
[1735221130601,0.03210199,95630.0,95620.0,0.10547219]
[1735221130808,0.10547219,95660.0,95621.0,0.1379]
[1735221131103,0.10547219,95650.0,95621.0,0.1379]
[1735221131508,0.10547219,95670.0,95630.0,0.10547219]
[1735221131509,0.10547219,95660.0,95630.0,0.10547219]
[1735221131806,0.10547219,95660.0,95631.0,0.0662]
[1735221132003,0.28139421,95667.0,95640.0,0.10547219]
[1735221132605,0.10547219,95670.0,95640.0,0.10547219]
[1735221133110,0.104544,95669.0,95640.0,0.10547219]
[1735221133306,0.10547219,95670.0,95637.0,0.35184]
[1735221133307,0.002,95650.0,95637.0,0.35184]
[1735221133502,0.002,95650.0,95640.0,0.10547219]
[1735221133898,0.002,95650.0,95637.0,0.3524]
[1735221134106,0.10547219,95660.0,95640.0,0.001]
[1735221134408,0.13947355,95670.0,95640.0,0.10747219]
[1735221134710,0.13947355,95670.0,95640.0,0.40747219]
[1735221134895,0.13747355,95670.0,95640.0,0.40547219]
[1735221135100,0.002,95650.0,95640.0,0.40547219]
[1735221135599,0.002,95650.0,95640.0,0.10547219]
[1735221135795,0.002,95650.0,95640.0,0.40547219]
[1735221135996,0.03200136,95670.0,95643.0,0.052332]
[1735221136199,0.10547219,95680.0,95640.0,0.40547219]
[1735221136200,0.28139421,95684.0,95660.0,0.10547219]
[1735221136504,0.10547219,95680.0,95661.0,0.0699]
[1735221136704,0.10547219,95680.0,95650.0,0.10547219]
[1735221137200,0.10452378,95679.0,95650.0,0.10547219]
[1735221138000,0.10452378,95679.0,95661.0,0.001]
[1735221139306,0.001,95680.0,95661.0,0.001]
[1735221139307,0.001,95680.0,95669.0,0.10547219]
[1735221139508,0.04155289,95684.0,95669.0,0.10547219]
[1735221139710,0.28139421,95686.0,95669.0,0.10547219]
[1735221140106,0.10452105,95685.0,95669.0,0.10547219]
[1735221140314,0.10452105,95685.0,95660.0,0.10547219]
[1735221140606,0.10452105,95685.0,95669.0,0.001]
[1735221141712,0.10547219,95680.0,95669.0,0.001]
[1735221142513,0.10451832,95679.0,95660.0,0.10547219]
[1735221142714,0.10451832,95679.0,95650.0,0.17467219]
[1735221143117,0.10451832,95679.0,95669.0,0.001]
[1735221143701,0.10451832,95679.0,95650.0,0.17467219]
[1735221144418,0.10451832,95679.0,95669.0,0.001]
[1735221146116,0.10451832,95679.0,95650.0,0.17467219]
[1735221146318,0.10547219,95670.0,95650.0,0.0692]
[1735221146819,0.20547219,95700.0,95669.0,0.001]
[1735221146820,0.10547219,95680.0,95669.0,0.001]
[1735221147209,0.10547219,95680.0,95650.0,0.17467219]
[1735221147911,0.1045369,95679.0,95669.0,0.001]
[1735221149314,0.10547219,95690.0,95669.0,0.001]
[1735221149509,0.10547219,95690.0,95670.0,0.0696]
[1735221149712,0.1045216,95689.0,95670.0,0.0696]
[1735221150725,0.1045216,95689.0,95670.0,0.0706]
[1735221150908,0.10547219,95680.0,95670.0,0.0706]
[1735221151309,0.10547219,95680.0,95670.0,0.0321418]
[1735221151505,0.10451559,95679.0,95650.0,0.0692]
[1735221151709,0.10547219,95670.0,95650.0,0.0692]
[1735221154521,0.10547219,95670.0,95651.0,0.0651]
[1735221155111,0.10547219,95661.0,95651.0,0.0651]
[1735221155514,0.10547219,95670.0,95651.0,0.0651]
[1735221156109,0.10547219,95661.0,95651.0,0.0651]
[1735221156314,0.10454127,95669.0,95651.0,0.0651]
[1735221156724,0.10547219,95670.0,95651.0,0.0651]
[1735221157020,0.10547219,95661.0,95651.0,0.0651]
[1735221157215,0.1045369,95669.0,95651.0,0.0651]
[1735221157420,0.10547219,95670.0,95651.0,0.0651]
[1735221157815,0.1045369,95669.0,95651.0,0.0651]
[1735221158927,0.10547219,95670.0,95651.0,0.0651]
[1735221159128,0.28139421,95697.0,95651.0,0.0651]
[1735221159129,0.10547219,95680.0,95651.0,0.0651]
[1735221160224,0.10453089,95679.0,95651.0,0.0651]
[1735221161022,0.00010008,95666.0,95651.0,0.0651]
[1735221163311,0.03508733,95666.0,95651.0,0.0651]
[1735221163516,0.00010008,95666.0,95651.0,0.0651]
[1735221168834,0.0353498,95666.0,95651.0,0.0651]
[1735221169020,0.00010008,95666.0,95651.0,0.0651]
[1735221170343,0.0338436,95666.0,95654.0,0.052326]
[1735221170519,0.65616224,95682.0,95656.0,0.10547219]
[1735221170721,0.69134584,95682.0,95670.0,0.10547219]
[1735221170920,0.69134584,95682.0,95671.0,0.081]
[1735221171736,0.28242889,95681.0,95671.0,0.081]
[1735221172434,0.28242889,95681.0,95671.0,0.082]
[1735221173129,0.0351836,95682.0,95671.0,0.082]
[1735221173322,0.28242889,95683.0,95671.0,0.082]
[1735221173727,0.10547219,95681.0,95671.0,0.001]
[1735221174128,0.28242889,95683.0,95671.0,0.001]
[1735221174538,0.10451832,95682.0,95671.0,0.001]
[1735221174834,0.10547219,95681.0,95671.0,0.001]
[1735221175132,0.10547219,95681.0,95652.0,0.0843]
[1735221175328,0.10547219,95670.0,95652.0,0.0843]
[1735221175529,0.1662,95669.0,95652.0,0.0843]
[1735221178334,0.03434451,95669.0,95659.0,0.10547219]
[1735221178542,0.28242889,95683.0,95659.0,0.10547219]
[1735221178837,0.28242889,95683.0,95670.0,0.10547219]
[1735221179827,0.31616214,95683.0,95660.0,0.10547219]
[1735221184736,0.28242889,95677.0,95660.0,0.10547219]
[1735221185939,0.03373325,95683.0,95660.0,0.10547219]
[1735221185940,0.28242889,95678.0,95660.0,0.10547219]
[1735221187441,0.28242889,95678.0,95668.0,0.10547219]
[1735221188341,0.28242889,95677.0,95668.0,0.10547219]
[1735221188945,0.28242889,95677.0,95668.0,0.10647219]
[1735221189137,0.28242889,95677.0,95669.0,0.0846]
[1735221189338,0.28242889,95679.0,95669.0,0.0846]
[1735221189737,0.28242889,95679.0,95669.0,0.19007219]
[1735221190032,0.28242889,95679.0,95673.0,0.052316]
[1735221190237,0.28242889,95679.0,95674.0,0.1659]
[1735221190454,0.28242889,95680.0,95674.0,0.1659]
[1735221191836,0.28242889,95680.0,95674.0,0.1669]
[1735221192044,0.03406165,95684.0,95674.0,0.1669]
[1735221192231,0.28242889,95694.0,95674.0,0.1669]
[1735221192435,0.28242889,95694.0,95684.0,0.10547219]
[1735221193946,0.28242889,95694.0,95684.0,0.10647219]
[1735221195049,0.13526679,95700.0,95684.0,0.10647219]
[1735221195239,0.13526679,95700.0,95690.0,0.10547219]
[1735221196850,0.13526679,95700.0,95690.0,0.10647219]
[1735221197751,0.13526679,95700.0,95690.0,0.10747219]
[1735221198543,0.13526679,95700.0,95693.0,0.052305]
[1735221198749,0.13526679,95700.0,95694.0,0.0843]
[1735221199251,0.13526679,95700.0,95695.0,0.0802]
[1735221199545,0.13526679,95700.0,95699.0,0.052302]
[1735221199739,0.28242889,95714.0,95695.0,0.0802]
[1735221200371,0.04316258,95714.0,95695.0,0.3802]
[1735221200646,0.28242889,95718.0,95696.0,0.052303]
[1735221201048,0.28242889,95718.0,95696.0,0.352303]
[1735221201253,0.28242889,95718.0,95697.0,0.2871]
[1735221201738,0.28242889,95718.0,95697.0,0.5871]
[1735221201942,0.04371581,95720.0,95698.0,0.1128]
[1735221202133,0.052283,95733.0,95699.0,0.052301]
[1735221202533,0.052283,95733.0,95699.0,0.352301]
[1735221202939,0.052283,95733.0,95699.0,0.052301]
[1735221203134,0.09533771,95733.0,95699.0,0.352301]
[1735221204647,0.052284,95731.0,95699.0,0.352301]
[1735221204850,0.052284,95731.0,95699.0,0.361301]
[1735221205941,0.052285,95730.0,95699.0,0.061301]
[1735221206250,0.0837,95747.0,95699.0,0.314]
[1735221206454,0.052282,95735.0,95699.0,0.314]
[1735221206843,0.052282,95735.0,95699.0,0.309]
[1735221207154,0.052282,95735.0,95699.0,0.314]
[1735221207867,0.12788724,95747.0,95699.0,0.314]
[1735221208155,0.052283,95733.0,95699.0,0.314]
[1735221208756,0.12788724,95747.0,95699.0,0.314]
[1735221209051,0.052285,95730.0,95699.0,0.314]
[1735221209246,0.052286,95728.0,95699.0,0.314]
[1735221209446,0.052287,95726.0,95699.0,0.314]
[1735221209649,0.052288,95725.0,95699.0,0.014]
[1735221209845,0.12788724,95747.0,95699.0,0.314]
[1735221210050,0.052288,95724.0,95699.0,0.305]
[1735221210251,0.052288,95724.0,95699.0,0.314]
[1735221210756,0.05228,95739.0,95699.0,0.309]
[1735221210947,0.052292,95717.0,95699.0,0.314]
[1735221211251,0.052292,95716.0,95707.0,0.04092716]
[1735221211553,0.052293,95715.0,95707.0,0.04092716]
[1735221211755,0.05228,95739.0,95707.0,0.04092716]
[1735221211958,0.31348,95713.0,95700.0,0.052301]
[1735221212157,0.052299,95705.0,95700.0,0.052301]
[1735221212958,0.052301,95701.0,95699.0,0.014]
[1735221213452,0.0871,95721.0,95700.0,0.004]
[1735221213658,0.052296,95709.0,95707.0,0.006]
[1735221214257,0.052296,95709.0,95704.0,0.052299]
[1735221214654,0.052294,95714.0,95707.0,0.054297]
[1735221214955,0.052294,95714.0,95708.0,0.052297]
[1735221215157,0.052294,95714.0,95709.0,0.052296]
[1735221216457,0.052294,95714.0,95709.0,0.054296]
[1735221216954,0.052294,95714.0,95709.0,0.057296]
[1735221217259,0.31348,95713.0,95709.0,0.056296]
[1735221217455,0.31348,95713.0,95709.0,0.055296]
[1735221218856,0.31348,95713.0,95709.0,0.003]
[1735221219056,0.31348,95713.0,95711.0,0.052295]
[1735221219656,0.04365242,95722.0,95714.0,0.052293]
[1735221219960,0.31348,95721.0,95714.0,0.052293]
[1735221221353,0.31348,95720.0,95710.0,0.10496394]
[1735221221558,0.31348,95724.0,95717.0,0.052291]
[1735221222153,0.05142101,95727.0,95710.0,0.10496394]
[1735221222466,0.052279,95741.0,95717.0,0.10496394]
[1735221222760,0.052279,95741.0,95718.0,0.1692]
[1735221222968,0.31348,95730.0,95718.0,0.1692]
[1735221223761,0.13334603,95738.0,95718.0,0.1692]
[1735221223967,0.31348,95730.0,95718.0,0.1692]
[1735221224164,0.31348,95730.0,95718.0,0.1702]
[1735221224968,0.052281,95737.0,95718.0,0.1702]
[1735221225165,0.31348,95730.0,95718.0,0.1702]
[1735221225374,0.052282,95736.0,95718.0,0.1702]
[1735221225560,0.31348,95730.0,95718.0,0.1702]
[1735221225962,0.31348,95725.0,95718.0,0.1702]
[1735221226161,0.31348,95725.0,95722.0,0.052289]
[1735221227074,0.052282,95735.0,95718.0,0.1702]